fUSD/lending_fUSD_20260324
["ID","MTS","AMOUNT","RATE_DAILY","PERIOD"]
[408842493,1774338754224,-500.0,0.0004274,120]
[408842494,1774338754234,-500.0,0.0004274,120]
[408842495,1774338754243,-601.84430726,0.0004274,120]
[408842496,1774338754253,-495.30632484,0.00042793,89]
[408842497,1774338754262,-694.1567,0.000428,120]
[408842498,1774338754272,-354.6839,0.000428,120]
[408842499,1774338754281,-347.5533,0.000428,90]
[408842500,1774338754291,-527.812,0.000428,120]
[408842501,1774338754301,-720.836,0.000428,120]
[408842502,1774338754311,-1444.3215,0.000428,90]
[408842503,1774338754320,-871.14,0.000428,90]
[408842504,1774338754330,-343.5901,0.000428,120]
[408842505,1774338754339,-736.4359,0.000428,120]
[408842506,1774338754348,-737.8347,0.000428,90]
[408842507,1774338754359,-314.0403,0.000428,90]
[408842508,1774338754368,-342.8909,0.000428,120]
[408842509,1774338754377,-252.83,0.00042829,120]
[408842510,1774338754390,-150.0,0.00042829,120]
[408842511,1774338754400,-969.35,0.00042829,120]
[408842512,1774338754410,-500.0,0.00042849,120]
[408842513,1774338754420,-1093.8,0.00042863,30]
[408842514,1774338754431,-81658.10953247,0.0004287,2]
[408842515,1774338754441,-2237.65421306,0.0004287,5]
[408842516,1774338754450,-236600.00828232,0.000429,2]
[408842517,1774338754461,-212.0,0.0004295,30]
[408842518,1774338754471,-1631.03139885,0.00043,2]
[408842519,1774338754480,-1828.7313032,0.00043,120]
[408842520,1774338754490,-14522.0,0.00043,120]
[408842521,1774338754500,-1069.8241371,0.00043,3]
[408842522,1774338754509,-11240.29,0.00043,120]
[408842523,1774338754518,-225.767097,0.00043,120]
[408842524,1774338754528,-32191.1,0.00043,120]
[408842525,1774338754538,-2735.451747,0.00043012,60]
[408842526,1774338754548,-2735.45174699,0.00043012,60]
[408842527,1774338754558,-743.4779064,0.00043013,120]
[408842528,1774338754567,-590.67,0.00043013,120]
[408842529,1774338754577,-1000.0,0.00043013,120]
[408842530,1774338754586,-500.0,0.00043013,120]
[408842531,1774338754596,-500.0,0.00043013,120]
[408842532,1774338754605,-500.0,0.00043013,120]
[408842533,1774338754615,-500.0,0.00043013,120]
[408842534,1774338754624,-500.0,0.00043013,120]
[408842535,1774338754634,-705.66,0.00043013,120]
[408842536,1774338754643,-943.74,0.00043013,120]
[408842537,1774338754654,-500.0,0.00043013,120]
[408842538,1774338754663,-500.0,0.00043013,120]
[408842539,1774338754672,-366.26356744,0.00043013,120]
[408842540,1774338754682,-507.3,0.00043013,120]
[408842541,1774338754691,-568.39,0.00043013,120]
[408842542,1774338754700,-500.0,0.00043013,120]
[408842543,1774338754710,-729.64,0.00043013,120]
[408842544,1774338754719,-639.9,0.00043013,120]
[408842545,1774338754728,-500.0,0.00043013,30]
[408842546,1774338754737,-500.0,0.00043013,14]
[408842547,1774338754746,-500.0,0.00043013,30]
[408842548,1774338754755,-651.21,0.00043013,120]
[408842549,1774338754765,-500.0,0.00043013,120]
[408842550,1774338754774,-524.6,0.00043013,120]
[408842551,1774338754784,-978.66,0.00043013,120]
[408842552,1774338754793,-500.0,0.00043013,30]
[408842553,1774338754802,-1180.13,0.00043013,120]
[408842554,1774338754812,-500.0,0.00043013,120]
[408842555,1774338754821,-500.0,0.00043013,120]
[408842556,1774338754830,-500.0,0.00043013,120]
[408842557,1774338754839,-574.37,0.00043013,120]
[408842558,1774338754849,-500.0,0.00043013,120]
[408842559,1774338754858,-500.0,0.00043013,120]
[408842560,1774338754868,-1281.45,0.00043013,120]
[408842561,1774338754878,-1329.75,0.00043013,120]
[408842562,1774338754887,-491.322922,0.00043013,120]
[408842563,1774338755026,-500.0,0.00043013,120]
[408842564,1774338755036,-500.0,0.00043013,90]
[408842565,1774338755046,-500.0,0.00043013,120]
[408842566,1774338755055,-528.5254568,0.00043013,120]
[408842567,1774338755064,-437.19751898,0.00043013,120]
[408842568,1774338755074,-880.66,0.00043013,5]
[408842569,1774338755083,-599.98,0.00043013,120]
[408842570,1774338755093,-1076.85,0.00043013,120]
[408842571,1774338755102,-651.22,0.00043013,120]
[408842572,1774338755112,-500.0,0.00043013,120]
[408842573,1774338755123,-321.16051598,0.00043013,120]
[408842574,1774338755133,-539.9,0.00043013,120]
[408842575,1774338755144,-604.85,0.00043013,120]
[408842576,1774338755154,-236.66889099,0.00043013,120]
[408842577,1774338755163,-766.13,0.00043013,120]
[408842578,1774338755172,-617.48,0.00043013,120]
[408842579,1774338755182,-500.0,0.00043013,120]
[408842580,1774338755191,-835.56,0.00043013,120]
[408842581,1774338755200,-792.41,0.00043013,120]
[408842582,1774338755210,-500.0,0.00043013,120]
[408842583,1774338755219,-500.0,0.00043013,120]
[408842584,1774338755229,-500.0,0.00043013,120]
[408842585,1774338755238,-500.0,0.00043013,120]
[408842586,1774338755247,-500.0,0.00043013,120]
[408842587,1774338755257,-1234.56,0.00043013,120]
[408842588,1774338755267,-500.0,0.00043013,120]
[408842589,1774338755276,-890.18,0.00043013,120]
[408842590,1774338755285,-500.0,0.00043013,120]
[408842591,1774338755294,-500.0,0.00043013,120]
[408842592,1774338755303,-500.0,0.00043013,120]
[408842593,1774338755313,-500.0,0.00043013,120]
[408842594,1774338755322,-1024.48,0.00043013,120]
[408842595,1774338755331,-500.0,0.00043013,120]
[408842596,1774338755341,-500.0,0.00043013,120]
[408842597,1774338755350,-500.0,0.00043013,120]
[408842598,1774338755360,-500.0,0.00043013,120]
[408842599,1774338755370,-766.51,0.00043013,120]
[408842600,1774338755379,-500.0,0.00043013,120]
[408842601,1774338755390,-677.14,0.00043013,120]
[408842602,1774338755401,-2135.18,0.00043013,120]
[408842603,1774338755413,-563.34,0.00043013,120]
[408842604,1774338755422,-1402.94,0.00043013,120]
[408842605,1774338755433,-761.77,0.00043013,120]
[408842606,1774338755443,-1465.28,0.00043013,120]
[408842607,1774338755453,-500.0,0.00043013,120]
[408842608,1774338755468,-500.0,0.00043013,120]
[408842609,1774338755484,-500.0,0.00043013,120]
[408842610,1774338755493,-500.0,0.00043013,120]
[408842611,1774338755503,-598.21,0.00043013,120]
[408842612,1774338755512,-500.0,0.00043013,120]
[408842613,1774338755521,-1412.93,0.00043013,120]
[408842614,1774338755530,-500.0,0.00043013,120]
[408842615,1774338755541,-500.0,0.00043013,120]
[408842616,1774338755550,-500.0,0.00043013,120]
[408842617,1774338755559,-846.4,0.00043013,120]
[408842618,1774338755569,-500.0,0.00043013,120]
[408842619,1774338755579,-500.0,0.00043013,120]
[408842620,1774338755588,-804.53,0.00043013,120]
[408842621,1774338755596,-967.16,0.00043013,120]
[408842622,1774338755605,-862.09,0.00043013,120]
[408842623,1774338755615,-500.0,0.00043013,120]
[408842624,1774338755623,-649.68,0.00043013,120]
[408842625,1774338755633,-897.41,0.00043013,120]
[408842626,1774338755642,-500.0,0.00043013,120]
[408842627,1774338755651,-500.0,0.00043013,120]
[408842628,1774338755660,-500.0,0.00043013,120]
[408842629,1774338755670,-1647.3,0.00043013,120]
[408842630,1774338755679,-500.0,0.00043013,120]
[408842631,1774338755689,-500.0,0.00043013,120]
[408842632,1774338755698,-500.0,0.00043013,120]
[408842633,1774338755709,-500.0,0.00043013,120]
[408842634,1774338755719,-500.0,0.00043013,120]
[408842635,1774338755728,-575.25768557,0.00043013,120]
[408842636,1774338755736,-932.54,0.00043013,120]
[408842637,1774338755746,-1817.92,0.00043013,120]
[408842638,1774338755755,-500.0,0.00043013,120]
[408842639,1774338755764,-500.0,0.00043013,120]
[408842640,1774338755774,-500.0,0.00043013,120]
[408842641,1774338755783,-500.0,0.00043013,120]
[408842642,1774338755791,-1328.91,0.00043013,120]
[408842643,1774338755800,-500.0,0.00043013,120]
[408842644,1774338755810,-500.0,0.00043013,120]
[408842645,1774338755819,-1294.19,0.00043013,120]
[408842646,1774338755829,-500.0,0.00043013,120]
[408842647,1774338755838,-3681.23,0.00043013,120]
[408842648,1774338755847,-500.0,0.00043013,120]
[408842649,1774338755856,-500.0,0.00043013,120]
[408842650,1774338755865,-500.0,0.00043013,120]
[408842651,1774338755874,-500.0,0.00043013,120]
[408842652,1774338755884,-644.74,0.00043013,120]
[408842653,1774338755893,-500.0,0.00043013,120]
[408842654,1774338755902,-688.63,0.00043013,120]
[408842655,1774338755911,-572.14,0.00043013,120]
[408842656,1774338755920,-500.0,0.00043013,120]
[408842657,1774338755930,-500.0,0.00043013,120]
[408842658,1774338755939,-500.0,0.00043013,120]
[408842659,1774338755948,-1109.47,0.00043013,120]
[408842660,1774338755957,-500.0,0.00043013,120]
[408842661,1774338755967,-500.0,0.00043013,120]
[408842662,1774338755976,-500.0,0.00043013,120]
[408842663,1774338755985,-1361.64,0.00043013,120]
[408842664,1774338755994,-500.0,0.00043013,120]
[408842665,1774338756003,-1113.98,0.00043013,120]
[408842666,1774338756012,-500.0,0.00043013,120]
[408842667,1774338756021,-500.0,0.00043013,120]
[408842668,1774338756030,-500.0,0.00043013,120]
[408842669,1774338756038,-500.0,0.00043013,120]
[408842670,1774338756048,-500.0,0.00043013,120]
[408842671,1774338756057,-804.84,0.00043013,120]
[408842672,1774338756066,-587.8,0.00043013,120]
[408842673,1774338756075,-895.35,0.00043013,120]
[408842674,1774338756084,-500.0,0.00043013,120]
[408842675,1774338756093,-500.0,0.00043013,120]
[408842676,1774338756102,-640.6,0.00043013,120]
[408842677,1774338756112,-503.70099242,0.00043013,120]
[408842678,1774338756122,-500.0,0.00043013,120]
[408842679,1774338756132,-500.0,0.00043013,120]
[408842680,1774338756141,-500.0,0.00043013,120]
[408842681,1774338756152,-500.0,0.00043013,120]
[408842682,1774338756162,-500.0,0.00043013,2]
[408842683,1774338756171,-1353.62,0.00043013,120]
[408842684,1774338756181,-500.0,0.00043013,120]
[408842685,1774338756190,-663.05,0.00043013,120]
[408842686,1774338756199,-500.0,0.00043013,120]
[408842687,1774338756208,-500.0,0.00043013,120]
[408842688,1774338756217,-2022.99,0.00043013,120]
[408842689,1774338756226,-500.0,0.00043013,120]
[408842690,1774338756236,-993.61,0.00043013,120]
[408842691,1774338756245,-500.0,0.00043013,120]
[408842692,1774338756254,-500.0,0.00043013,120]
[408842693,1774338756263,-500.0,0.00043013,120]
[408842694,1774338756272,-526.3,0.00043013,120]
[408842695,1774338756281,-803.74,0.00043013,120]
[408842696,1774338756292,-500.0,0.00043013,120]
[408842697,1774338756301,-500.0,0.00043013,120]
[408842698,1774338756313,-500.0,0.00043013,120]
[408842699,1774338756322,-500.0,0.00043013,120]
[408842700,1774338756332,-593.39,0.00043013,120]
[408842701,1774338756343,-773.48,0.00043013,120]
[408842702,1774338756353,-500.0,0.00043013,120]
[408842703,1774338756362,-500.0,0.00043013,120]
[408842704,1774338756372,-500.0,0.00043013,120]
[408842705,1774338756382,-500.0,0.00043013,120]
[408842706,1774338756397,-500.0,0.00043013,120]
[408842707,1774338756408,-500.0,0.00043013,120]
[408842708,1774338756417,-500.0,0.00043013,120]
[408842709,1774338756429,-1169.17,0.00043013,120]
[408842710,1774338756439,-500.0,0.00043013,120]
[408842711,1774338756448,-500.0,0.00043013,120]
[408842712,1774338756458,-500.0,0.00043013,120]
[408842713,1774338756468,-500.0,0.00043013,120]
[408842714,1774338756477,-500.0,0.00043013,120]
[408842715,1774338756486,-1339.98,0.00043013,120]
[408842716,1774338756495,-500.0,0.00043013,120]
[408842717,1774338756505,-500.0,0.00043013,120]
[408842718,1774338756514,-599.34,0.00043013,120]
[408842719,1774338756524,-551.15,0.00043013,120]
[408842720,1774338756534,-500.0,0.00043013,120]
[408842721,1774338756543,-1698.32,0.00043013,120]
[408842722,1774338756552,-1450.66,0.00043013,120]
[408842723,1774338756561,-500.0,0.00043013,120]
[408842724,1774338756571,-500.0,0.00043013,120]
[408842725,1774338756581,-818.03,0.00043013,120]
[408842726,1774338756590,-157.645705,0.00043013,120]
[408842727,1774338756600,-620.94,0.00043013,2]
[408842728,1774338756610,-500.0,0.00043013,120]
[408842729,1774338756619,-500.0,0.00043013,120]
[408842730,1774338756629,-198.44535367,0.00043013,120]
[408842731,1774338756638,-500.0,0.00043013,120]
[408842732,1774338756647,-500.0,0.00043013,120]
[408842733,1774338756657,-500.0,0.00043013,120]
[408842734,1774338756667,-500.0,0.00043013,120]
[408842735,1774338756676,-500.0,0.00043013,120]
[408842736,1774338756685,-500.0,0.00043013,120]
[408842737,1774338756695,-500.0,0.00043013,120]
[408842738,1774338756704,-407.29944861,0.00043013,120]
[408842739,1774338756713,-1515.34,0.00043013,120]
[408842740,1774338756723,-500.0,0.00043013,120]
[408842741,1774338756732,-500.0,0.00043013,120]
[408842742,1774338756741,-500.0,0.00043013,120]
[408842743,1774338756751,-500.0,0.00043013,120]
[408842744,1774338756760,-1009.33,0.00043013,120]
[408842745,1774338756769,-4192.59,0.00043013,120]
[408842746,1774338756779,-500.0,0.00043013,120]
[408842747,1774338756788,-500.0,0.00043013,120]
[408842748,1774338756798,-500.0,0.00043013,120]
[408842749,1774338756807,-2475.9,0.00043013,120]
[408842750,1774338756817,-500.0,0.00043013,120]
[408842751,1774338756827,-500.0,0.00043013,120]
[408842752,1774338756836,-2035.37,0.00043013,120]
[408842753,1774338756846,-500.0,0.00043013,120]
[408842754,1774338756855,-500.0,0.00043013,120]
[408842755,1774338756864,-589.65303515,0.00043013,120]
[408842756,1774338756874,-857.75,0.00043013,120]
[408842757,1774338756884,-944.17,0.00043013,120]
[408842758,1774338756893,-500.0,0.00043013,120]
[408842759,1774338756903,-500.0,0.00043013,120]
[408842760,1774338756912,-1317.86,0.00043013,30]
[408842761,1774338756921,-500.0,0.00043013,120]
[408842762,1774338756931,-500.0,0.00043013,120]
[408842763,1774338756940,-826.35,0.00043013,120]
[408842764,1774338756950,-588.23,0.00043013,120]
[408842765,1774338756959,-1144.87,0.00043013,120]
[408842766,1774338756971,-500.0,0.00043013,120]
[408842767,1774338756980,-500.0,0.00043013,120]
[408842768,1774338756989,-500.0,0.00043013,120]
[408842769,1774338756999,-895.15,0.00043013,120]
[408842770,1774338757008,-800.0,0.00043013,120]
[408842771,1774338757017,-500.0,0.00043013,120]
[408842772,1774338757026,-1197.62,0.00043013,120]
[408842773,1774338757036,-500.0,0.00043013,120]
[408842774,1774338757045,-1494.6,0.00043013,120]
[408842775,1774338757054,-1086.62,0.00043013,120]
[408842776,1774338757064,-500.0,0.00043013,120]
[408842777,1774338757074,-500.0,0.00043013,120]
[408842778,1774338757083,-500.0,0.00043013,120]
[408842779,1774338757092,-500.0,0.00043013,120]
[408842780,1774338757105,-946.8,0.00043013,120]
[408842781,1774338757114,-500.0,0.00043013,120]
[408842782,1774338757124,-713.74,0.00043013,120]
[408842783,1774338757134,-6072.1,0.00043013,120]
[408842784,1774338757144,-826.7,0.00043013,120]
[408842785,1774338757155,-1989.66,0.00043013,30]
[408842786,1774338757164,-552.86,0.00043013,120]
[408842787,1774338757174,-926.79,0.00043013,120]
[408842788,1774338757184,-500.0,0.00043013,120]
[408842789,1774338757194,-500.0,0.00043013,120]
[408842790,1774338757203,-238.10083884,0.00043013,120]
[408842791,1774338757212,-2329.55,0.00043013,120]
[408842792,1774338757222,-500.0,0.00043013,120]
[408842793,1774338757231,-500.0,0.00043013,120]
[408842794,1774338757240,-847.68,0.00043013,120]
[408842795,1774338757249,-1646.81,0.00043013,120]
[408842796,1774338757259,-1090.68,0.00043013,120]
[408842797,1774338757269,-500.0,0.00043013,120]
[408842798,1774338757279,-1885.93,0.00043013,120]
[408842799,1774338757288,-741.6,0.00043013,120]
[408842800,1774338757297,-500.0,0.00043013,120]
[408842801,1774338757307,-727.16,0.00043013,120]
[408842802,1774338757317,-712.06,0.00043013,120]
[408842803,1774338757327,-5833.33,0.00043013,120]
[408842804,1774338757337,-2107.35,0.00043013,120]
[408842805,1774338757347,-500.0,0.00043013,120]
[408842806,1774338757357,-500.0,0.00043013,120]
[408842807,1774338757366,-500.0,0.00043013,120]
[408842808,1774338757376,-461.4045686,0.00043013,120]
[408842809,1774338757393,-617.58,0.00043013,120]
[408842810,1774338757403,-500.0,0.00043013,120]
[408842811,1774338757413,-2133.23,0.00043013,120]
[408842812,1774338757422,-500.0,0.00043013,120]
[408842813,1774338757433,-1039.39,0.00043013,120]
[408842814,1774338757443,-2468.56,0.00043013,120]
[408842815,1774338757453,-1366.12,0.00043013,120]
[408842816,1774338757462,-500.0,0.00043013,120]
[408842817,1774338757474,-201.94493528,0.00043013,120]
[408842818,1774338757484,-1016.32,0.00043013,120]
[408842819,1774338757494,-500.0,0.00043013,120]
[408842820,1774338757505,-784.59,0.00043013,120]
[408842821,1774338757515,-1478.69,0.00043013,120]
[408842822,1774338757524,-500.0,0.00043013,120]
[408842823,1774338757533,-1107.99,0.00043013,120]
[408842824,1774338757543,-1259.9,0.00043013,120]
[408842825,1774338757552,-1114.05,0.00043013,120]
[408842826,1774338757562,-1519.93,0.00043013,120]
[408842827,1774338757571,-646.06,0.00043013,120]
[408842828,1774338757580,-500.0,0.00043013,120]
[408842829,1774338757590,-1266.58,0.00043013,120]
[408842830,1774338757599,-500.0,0.00043013,120]
[408842831,1774338757609,-500.0,0.00043013,120]
[408842832,1774338757618,-500.0,0.00043013,120]
[408842833,1774338757627,-1009.25,0.00043013,120]
[408842834,1774338757637,-707.37,0.00043013,120]
[408842835,1774338757646,-1156.03,0.00043013,14]
[408842836,1774338757657,-999.55,0.00043013,120]
[408842837,1774338757666,-500.0,0.00043013,120]
[408842838,1774338757676,-970.63,0.00043013,120]
[408842839,1774338757686,-650.62,0.00043013,30]
[408842840,1774338757696,-725.53,0.00043013,120]
[408842841,1774338757705,-500.0,0.00043013,120]
[408842842,1774338757714,-1014.92,0.00043013,120]
[408842843,1774338757723,-500.0,0.00043013,120]
[408842844,1774338757732,-2689.33,0.00043013,120]
[408842845,1774338757741,-500.0,0.00043013,120]
[408842846,1774338757751,-500.0,0.00043013,120]
[408842847,1774338757760,-634.7775382,0.00043013,120]
[408842848,1774338757769,-500.0,0.00043013,120]
[408842849,1774338757779,-1544.85,0.00043013,120]
[408842850,1774338757788,-500.0,0.00043013,120]
[408842851,1774338757797,-500.0,0.00043013,120]
[408842852,1774338757806,-1269.14,0.00043013,120]
[408842853,1774338757815,-500.0,0.00043013,120]
[408842854,1774338757825,-500.0,0.00043013,120]
[408842855,1774338757834,-665.15,0.00043013,120]
[408842856,1774338757843,-500.0,0.00043013,120]
[408842857,1774338757853,-680.42,0.00043013,120]
[408842858,1774338757862,-500.0,0.00043013,120]
[408842859,1774338757872,-500.0,0.00043013,120]
[408842860,1774338757881,-500.0,0.00043013,120]
[408842861,1774338757890,-500.0,0.00043013,120]
[408842862,1774338757899,-500.0,0.00043013,120]
[408842863,1774338757908,-1769.26,0.00043013,120]
[408842864,1774338757917,-512.42,0.00043013,120]
[408842865,1774338757927,-500.0,0.00043013,120]
[408842866,1774338757936,-500.0,0.00043013,120]
[408842867,1774338757946,-500.0,0.00043013,120]
[408842868,1774338757955,-500.0,0.00043013,120]
[408842869,1774338757964,-500.0,0.00043013,120]
[408842870,1774338757974,-500.0,0.00043013,120]
[408842871,1774338757983,-500.0,0.00043013,120]
[408842872,1774338757992,-500.0,0.00043013,120]
[408842873,1774338758001,-1705.77,0.00043013,120]
[408842874,1774338758010,-500.0,0.00043013,120]
[408842875,1774338758020,-978.43,0.00043013,120]
[408842876,1774338758029,-500.0,0.00043013,120]
[408842877,1774338758039,-500.0,0.00043013,120]
[408842878,1774338758048,-500.0,0.00043013,120]
[408842879,1774338758057,-500.0,0.00043013,120]
[408842880,1774338758066,-500.0,0.00043013,120]
[408842881,1774338758075,-500.0,0.00043013,120]
[408842882,1774338758085,-632.82655464,0.00043013,120]
[408842883,1774338758095,-500.0,0.00043013,120]
[408842884,1774338758104,-500.0,0.00043013,120]
[408842885,1774338758114,-207.71209386,0.00043013,120]
[408842886,1774338758123,-500.0,0.00043013,120]
[408842887,1774338758132,-1215.44,0.00043013,120]
[408842888,1774338758142,-500.0,0.00043013,120]
[408842889,1774338758151,-576.90694687,0.00043013,120]
[408842890,1774338758160,-548.21384343,0.00043013,120]
[408842891,1774338758170,-1046.27,0.00043013,120]
[408842892,1774338758179,-500.0,0.00043013,120]
[408842893,1774338758188,-500.0,0.00043013,120]
[408842894,1774338758198,-1613.72,0.00043013,120]
[408842895,1774338758207,-1897.96,0.00043013,120]
[408842896,1774338758216,-770.58,0.00043013,120]
[408842897,1774338758226,-1960.33,0.00043013,120]
[408842898,1774338758235,-630.44619636,0.00043013,120]
[408842899,1774338758244,-3056.27,0.00043013,120]
[408842900,1774338758253,-500.0,0.00043013,120]
[408842901,1774338758263,-1228.99,0.00043013,120]
[408842902,1774338758273,-500.0,0.00043013,60]
[408842903,1774338758282,-680.28,0.00043013,120]
[408842904,1774338758292,-769.44,0.00043013,120]
[408842905,1774338758302,-500.0,0.00043013,120]
[408842906,1774338758311,-500.0,0.00043013,120]
[408842907,1774338758320,-500.0,0.00043013,120]
[408842908,1774338758329,-500.0,0.00043013,120]
[408842909,1774338758339,-855.78,0.00043013,120]
[408842910,1774338758350,-500.0,0.00043013,120]
[408842911,1774338758359,-1078.9,0.00043013,120]
[408842912,1774338758368,-1780.32,0.00043013,120]
[408842913,1774338758377,-1099.3,0.00043013,120]
[408842914,1774338758387,-699.82,0.00043013,120]
[408842915,1774338758399,-759.17,0.00043013,120]
[408842916,1774338758409,-500.0,0.00043013,120]
[408842917,1774338758419,-296.1733008,0.00043013,120]
[408842918,1774338758428,-500.0,0.00043013,120]
[408842919,1774338758439,-931.09,0.00043013,120]
[408842920,1774338758448,-815.17,0.00043013,120]
[408842921,1774338758457,-500.0,0.00043013,120]
[408842922,1774338758467,-656.8,0.00043013,120]
[408842923,1774338758476,-500.0,0.00043013,120]
[408842924,1774338758486,-500.0,0.00043013,120]
[408842925,1774338758495,-500.0,0.00043013,120]
[408842926,1774338758505,-485.99719537,0.00043013,120]
[408842927,1774338758514,-500.0,0.00043013,120]
[408842928,1774338758523,-671.25,0.00043013,120]
[408842929,1774338758532,-500.0,0.00043013,120]
[408842930,1774338758542,-614.51,0.00043013,120]
[408842931,1774338758550,-1323.85,0.00043013,7]
[408842932,1774338758560,-500.0,0.00043013,14]
[408842933,1774338758569,-500.0,0.00043013,120]
[408842934,1774338758578,-984.57,0.00043013,120]
[408842935,1774338758587,-500.0,0.00043013,120]
[408842936,1774338758597,-500.0,0.00043013,120]
[408842937,1774338758606,-729.45,0.00043013,120]
[408842938,1774338758615,-500.0,0.00043013,120]
[408842939,1774338758625,-500.0,0.00043013,120]
[408842940,1774338758635,-926.4,0.00043013,120]
[408842941,1774338758645,-1291.11,0.00043013,120]
[408842942,1774338758656,-560.4,0.00043013,120]
[408842943,1774338758665,-617.21,0.00043013,120]
[408842944,1774338758674,-158.43265775,0.00043013,120]
[408842945,1774338758683,-1726.06,0.00043013,120]
[408842946,1774338758693,-500.0,0.00043013,120]
[408842947,1774338758703,-500.0,0.00043013,120]
[408842948,1774338758712,-500.0,0.00043013,120]
[408842949,1774338758721,-500.0,0.00043013,120]
[408842950,1774338758731,-500.0,0.00043013,120]
[408842951,1774338758740,-1356.13,0.00043013,120]
[408842952,1774338758750,-801.87,0.00043013,120]
[408842953,1774338758760,-500.0,0.00043013,120]
[408842954,1774338758769,-500.0,0.00043013,120]
[408842955,1774338758778,-2922.62,0.00043013,60]
[408842956,1774338758787,-821.12,0.00043013,120]
[408842957,1774338758796,-665.38,0.00043013,120]
[408842958,1774338758806,-500.0,0.00043013,120]
[408842959,1774338758815,-500.0,0.00043013,120]
[408842960,1774338758824,-866.85,0.00043013,120]
[408842961,1774338758833,-500.0,0.00043013,120]
[408842962,1774338758843,-500.0,0.00043013,120]
[408842963,1774338758852,-500.0,0.00043013,120]
[408842964,1774338758861,-500.0,0.00043013,120]
[408842965,1774338758870,-2859.83,0.00043013,120]
[408842966,1774338758879,-500.0,0.00043013,120]
[408842967,1774338758888,-644.49,0.00043013,120]
[408842968,1774338758897,-4166.66,0.00043013,120]
[408842969,1774338758907,-719.59,0.00043013,120]
[408842970,1774338758916,-500.0,0.00043013,120]
[408842971,1774338758925,-679.57,0.00043013,120]
[408842972,1774338758935,-500.0,0.00043013,120]
[408842973,1774338758945,-599.93,0.00043013,120]
[408842974,1774338758954,-500.0,0.00043013,120]
[408842975,1774338758964,-500.0,0.00043013,120]
[408842976,1774338758973,-500.0,0.00043013,120]
[408842977,1774338758983,-500.0,0.00043013,120]
[408842978,1774338758992,-1432.07,0.00043013,120]
[408842979,1774338759002,-500.0,0.00043013,120]
[408842980,1774338759012,-500.0,0.00043013,120]
[408842981,1774338759022,-500.0,0.00043013,120]
[408842982,1774338759032,-730.01,0.00043013,120]
[408842983,1774338759042,-508.87,0.00043013,120]
[408842984,1774338759051,-883.47,0.00043013,120]
[408842985,1774338759061,-500.0,0.00043013,120]
[408842986,1774338759071,-500.0,0.00043013,120]
[408842987,1774338759080,-500.0,0.00043013,120]
[408842988,1774338759090,-500.0,0.00043013,120]
[408842989,1774338759222,-500.0,0.00043013,120]
[408842990,1774338759235,-759.73,0.00043013,120]
[408842991,1774338759245,-500.0,0.00043013,120]
[408842992,1774338759254,-1171.93,0.00043013,120]